fUSD/lending_fUSD_20251225
["ID","MTS","AMOUNT","RATE_DAILY","PERIOD"]
[399702620,1766629838662,-151.0,0.00013291,2]
[399702621,1766629838673,-151.0,0.00013291,2]
[399702622,1766629838683,-500.0,0.00013291,2]
[399702623,1766629838694,-151.0,0.00013291,2]
[399702624,1766629838705,-500.0,0.00013291,2]
[399702625,1766629838715,-151.0,0.00013291,2]
[399702626,1766629838725,-500.0,0.00013291,2]
[399702627,1766629838735,-151.0,0.00013291,2]
[399702628,1766629838745,-207.4,0.00013291,2]
[399702629,1766629838755,-500.0,0.00013291,2]
[399702630,1766629838765,-151.0,0.00013291,2]
[399702631,1766629838775,-500.0,0.00013291,2]
[399702632,1766629838785,-151.0,0.00013291,2]
[399702633,1766629838795,-500.0,0.00013291,2]
[399702634,1766629838804,-151.0,0.00013291,2]
[399702635,1766629838814,-500.0,0.00013291,2]
[399702636,1766629838824,-151.0,0.00013291,2]
[399702637,1766629838834,-500.0,0.00013291,2]
[399702638,1766629838846,-500.0,0.00013291,2]
[399702639,1766629838857,-151.0,0.00013291,2]
[399702640,1766629838867,-500.0,0.00013291,2]
[399702641,1766629838877,-500.0,0.00013291,2]
[399702642,1766629838887,-500.0,0.00013291,2]
[399702643,1766629838897,-500.0,0.00013291,2]
[399702644,1766629838907,-500.0,0.00013291,2]
[399702645,1766629838917,-500.0,0.00013291,2]
[399702646,1766629838927,-500.0,0.00013291,2]
[399702647,1766629838936,-500.0,0.00013291,2]
[399702648,1766629838946,-500.0,0.00013291,2]
[399702649,1766629838956,-151.0,0.00013291,2]
[399702650,1766629838966,-500.0,0.00013291,2]
[399702651,1766629838976,-151.0,0.00013291,2]
[399702652,1766629838985,-500.0,0.00013291,2]
[399702653,1766629838995,-151.0,0.00013291,2]
[399702654,1766629839005,-500.0,0.00013291,2]
[399702655,1766629839015,-151.0,0.00013291,2]
[399702656,1766629839024,-500.0,0.00013291,2]
[399702657,1766629839035,-151.0,0.00013291,2]
[399702658,1766629839045,-151.0,0.00013291,2]
[399702659,1766629839055,-151.0,0.00013291,2]
[399702660,1766629839064,-151.0,0.00013291,2]
[399702661,1766629839074,-500.0,0.00013291,2]
[399702662,1766629839084,-200.0,0.00013291,2]
[399702663,1766629839094,-1500.0,0.00013473,2]
[399702664,1766629839105,-325.74526968,0.00013499,2]
[399702665,1766629839115,-316.41031083,0.00013639,2]
[399702666,1766629839125,-653.53083635,0.00013676,2]
[399702667,1766629839135,-9336.19076629,0.00013676,2]
[399702668,1766629839146,-500.0,0.00013698,2]
[399702669,1766629839157,-500.0,0.00013698,2]
[399702670,1766629839167,-500.0,0.00013698,2]
[399702671,1766629839178,-500.0,0.00013698,2]
[399702672,1766629839188,-500.0,0.00013698,2]
[399702673,1766629839198,-500.0,0.00013698,2]
[399702674,1766629839207,-500.0,0.00013698,2]
[399702675,1766629839217,-500.0,0.00013698,2]
[399702676,1766629839227,-500.0,0.00013698,2]
[399702677,1766629839236,-500.0,0.00013698,2]
[399702678,1766629839245,-500.0,0.00013698,2]
[399702679,1766629839255,-500.0,0.00013698,2]
[399702680,1766629839264,-500.0,0.00013698,2]
[399702681,1766629839274,-500.0,0.00013698,2]
[399702682,1766629839284,-500.0,0.00013698,2]
[399702683,1766629839294,-500.0,0.00013698,2]
[399702684,1766629839304,-500.0,0.00013698,2]
[399702685,1766629839314,-500.0,0.00013698,2]
[399702686,1766629839323,-500.0,0.00013698,2]
[399702687,1766629839333,-500.0,0.00013698,2]
[399702688,1766629839343,-234.1797943,0.00013699,2]
[399702689,1766629839355,-1170.85,0.000137,2]
[399702690,1766629839366,-1170.85,0.000137,2]
[399702691,1766629839377,-1170.85,0.000137,2]
[399702692,1766629839387,-1170.85,0.000137,2]
[399702693,1766629839398,-1170.85,0.000137,2]
[399702694,1766629839409,-989.12,0.00013701,2]
[399702695,1766629839420,-170.7,0.00013715,2]
[399702696,1766629839429,-200.0,0.00013839,2]
[399702697,1766629839438,-500.0,0.00013839,2]
[399702698,1766629839447,-200.0,0.00013839,2]
[399702699,1766629839458,-1194.0,0.00013943,2]
[399702700,1766629839467,-304.0,0.00014025,2]
[399702701,1766629839476,-653.53083635,0.00014079,2]
[399702702,1766629839485,-9336.19076629,0.00014079,2]
[399702703,1766629839495,-316.41031083,0.00014183,2]
[399702704,1766629839504,-35033.36,0.00014213,2]
[399702705,1766629839513,-255.0,0.00014298,2]
[399702706,1766629839522,-300.0,0.00014319,2]
[399702707,1766629839531,-195.0,0.00014319,2]
[399702708,1766629839540,-600.0,0.00014319,2]
[399702709,1766629839550,-600.0,0.00014319,2]
[399702710,1766629839559,-512.14920495,0.00014319,2]
[399702711,1766629839569,-300.0,0.00014327,2]
[399702712,1766629839578,-195.0,0.00014327,2]
[399702713,1766629839588,-600.0,0.00014327,2]
[399702714,1766629839597,-195.0,0.00014327,2]
[399702715,1766629839607,-250.0,0.00014327,2]
[399702716,1766629839616,-195.0,0.00014327,2]
[399702717,1766629839625,-195.0,0.00014327,2]
[399702718,1766629839635,-250.0,0.00014327,2]
[399702719,1766629839645,-1680.0,0.00014335,2]
[399702720,1766629839659,-420.0,0.00014359,2]
[399702721,1766629839672,-420.0,0.00014359,2]
[399702722,1766629839682,-200.0,0.00014387,2]
[399702723,1766629839692,-500.0,0.00014387,2]
[399702724,1766629839702,-200.0,0.00014387,2]
[399702725,1766629839712,-170.7,0.00014477,2]
[399702726,1766629839721,-653.53083635,0.00014482,2]
[399702727,1766629839731,-9336.19076629,0.00014482,2]
[399702728,1766629839740,-316.41031083,0.00014726,2]
[399702729,1766629839750,-2422.26,0.00014823,2]
[399702730,1766629839759,-653.53083635,0.00014885,2]
[399702731,1766629839769,-9336.19076629,0.00014885,2]
[399702732,1766629839779,-151.0,0.00014907,2]
[399702733,1766629839788,-151.0,0.00014912,2]
[399702734,1766629839798,-200.0,0.00014935,2]
[399702735,1766629839809,-500.0,0.00014935,2]
[399702736,1766629839824,-200.0,0.00014935,2]
[399702737,1766629839839,-1564.91483408,0.00015,14]
[399702738,1766629839860,-234.28,0.00015146,2]
[399702739,1766629839871,-170.7,0.00015239,2]
[399702740,1766629839881,-999.0,0.00015263,3]
[399702741,1766629839890,-316.41031083,0.0001527,2]
[399702742,1766629839900,-653.53083635,0.00015288,2]
[399702743,1766629839910,-9336.19076629,0.00015288,2]
[399702744,1766629839919,-200.0,0.00015483,2]
[399702745,1766629839929,-500.0,0.00015483,2]
[399702746,1766629839938,-200.0,0.00015483,2]
[399702747,1766629839948,-433.0,0.00015498,2]
[399702748,1766629839958,-653.53083635,0.00015691,2]
[399702749,1766629839968,-9336.19076629,0.00015691,2]
[399702750,1766629839979,-432.0,0.00015746,2]
[399702751,1766629839989,-587.0,0.00015746,2]
[399702752,1766629839999,-2351.0,0.00015769,2]
[399702753,1766629840009,-316.41031083,0.00015813,2]
[399702754,1766629840018,-170.7,0.00016001,2]
[399702755,1766629840027,-215.0738,0.0001603,2]
[399702756,1766629840037,-200.0,0.00016031,2]
[399702757,1766629840047,-500.0,0.00016031,2]
[399702758,1766629840058,-200.0,0.00016031,2]
[399702759,1766629840068,-653.53083635,0.00016094,2]
[399702760,1766629840078,-9336.19076629,0.00016094,2]
[399702761,1766629840087,-5000.00858263,0.000162,5]
[399702762,1766629840096,-316.41031083,0.00016357,2]
[399702763,1766629840106,-890.62876559,0.00016438,2]
[399702764,1766629840116,-890.62876559,0.00016438,2]
[399702765,1766629840126,-890.62876559,0.00016438,2]
[399702766,1766629840135,-890.62876559,0.00016438,2]
[399702767,1766629840145,-890.62876559,0.00016438,2]
[399702768,1766629840154,-890.62876559,0.00016438,2]
[399702769,1766629840164,-890.62876559,0.00016438,2]
[399702770,1766629840174,-890.62876559,0.00016438,2]
[399702771,1766629840186,-890.62876559,0.00016438,2]
[399702772,1766629840195,-890.62876559,0.00016438,2]
[399702773,1766629840205,-890.62876559,0.00016438,2]
[399702774,1766629840214,-890.62876559,0.00016438,2]
[399702775,1766629840223,-890.62876559,0.00016438,2]
[399702776,1766629840233,-890.62876559,0.00016438,2]
[399702777,1766629840243,-890.62876559,0.00016438,2]
[399702778,1766629840252,-890.62876559,0.00016438,2]
[399702779,1766629840262,-890.62876559,0.00016438,2]
[399702780,1766629840272,-890.62876559,0.00016438,2]
[399702781,1766629840282,-890.62876559,0.00016438,2]
[399702782,1766629840292,-890.62876559,0.00016438,2]
[399702783,1766629840301,-890.62876559,0.00016438,2]
[399702784,1766629840311,-890.62876559,0.00016438,2]
[399702785,1766629840321,-890.62876559,0.00016438,2]
[399702786,1766629840330,-890.62876559,0.00016438,2]
[399702787,1766629840340,-890.62876559,0.00016438,2]
[399702788,1766629840349,-890.62876559,0.00016438,2]
[399702789,1766629840359,-890.62876559,0.00016438,2]
[399702790,1766629840368,-890.62876559,0.00016438,2]
[399702791,1766629840377,-890.62876559,0.00016438,2]
[399702792,1766629840387,-890.62876559,0.00016438,2]
[399702793,1766629840397,-890.62876559,0.00016438,2]
[399702794,1766629840407,-890.62876559,0.00016438,2]
[399702795,1766629840416,-890.62876559,0.00016438,2]
[399702796,1766629840426,-890.62876559,0.00016438,2]
[399702797,1766629840435,-890.62876559,0.00016438,2]
[399702798,1766629840445,-890.62876559,0.00016438,2]
[399702799,1766629840454,-890.62876559,0.00016438,2]
[399702800,1766629840463,-890.62876559,0.00016438,2]
[399702801,1766629840473,-890.62876559,0.00016438,2]
[399702802,1766629840482,-890.62876559,0.00016438,2]
[399702803,1766629840491,-890.62876559,0.00016438,2]
[399702804,1766629840501,-890.62876559,0.00016438,2]
[399702805,1766629840510,-890.62876559,0.00016438,2]
[399702806,1766629840520,-890.62876559,0.00016438,2]
[399702807,1766629840529,-890.62876559,0.00016438,2]
[399702808,1766629840539,-890.62876559,0.00016438,2]
[399702809,1766629840548,-890.62876559,0.00016438,2]
[399702810,1766629840557,-890.62876559,0.00016438,2]
[399702811,1766629840567,-890.62876559,0.00016438,2]
[399702812,1766629840577,-890.62876559,0.00016438,2]
[399702813,1766629840586,-890.62876559,0.00016438,2]
[399702814,1766629840595,-890.62876559,0.00016438,2]
[399702815,1766629840605,-890.62876559,0.00016438,2]
[399702816,1766629840615,-890.62876559,0.00016438,2]
[399702817,1766629840625,-890.62876559,0.00016438,2]
[399702818,1766629840634,-890.62876559,0.00016438,2]
[399702819,1766629840643,-890.62876559,0.00016438,2]
[399702820,1766629840652,-890.62876559,0.00016438,2]
[399702821,1766629840662,-890.62876559,0.00016438,2]
[399702822,1766629840672,-890.62876559,0.00016438,2]
[399702823,1766629840681,-890.62876559,0.00016438,2]
[399702824,1766629840691,-890.62876559,0.00016438,2]
[399702825,1766629840700,-890.62876559,0.00016438,2]
[399702826,1766629840711,-890.62876559,0.00016438,2]
[399702827,1766629840720,-653.53083635,0.00016497,2]
[399702828,1766629840730,-9336.19076629,0.00016497,2]
[399702829,1766629840739,-200.0,0.00016579,2]
[399702830,1766629840749,-500.0,0.00016579,2]
[399702831,1766629840758,-200.0,0.00016579,2]
[399702832,1766629840768,-12251.78,0.00016616,2]
[399702833,1766629840778,-155.41970506,0.00016654,2]
[399702834,1766629840788,-152.75059156,0.00016699,2]
[399702835,1766629840798,-150.0,0.00016699,2]
[399702836,1766629840808,-500.0,0.00016699,2]
[399702837,1766629840818,-150.0,0.00016699,2]
[399702838,1766629840827,-150.0,0.00016699,2]
[399702839,1766629840837,-151.97215136,0.00016699,2]
[399702840,1766629840851,-500.0,0.00016699,2]
[399702841,1766629840861,-152.5369494,0.00016699,2]
[399702842,1766629840871,-155.23734384,0.00016699,2]
[399702843,1766629840882,-150.0,0.00016699,2]
[399702844,1766629840892,-500.0,0.00016699,2]
[399702845,1766629840901,-152.06547617,0.00016699,2]
[399702846,1766629840911,-500.0,0.00016699,2]
[399702847,1766629840923,-500.0,0.00016699,2]
[399702848,1766629840933,-150.73404556,0.00016699,2]
[399702849,1766629840942,-150.0,0.00016699,2]
[399702850,1766629840951,-150.0,0.00016699,2]
[399702851,1766629840961,-150.0,0.00016699,2]
[399702852,1766629840971,-152.94351657,0.00016699,2]
[399702853,1766629840981,-150.0,0.00016699,2]
[399702854,1766629840991,-175.44964108,0.00016699,2]
[399702855,1766629841001,-279.7290652,0.00016699,2]
[399702856,1766629841011,-150.0,0.00016699,2]
[399702857,1766629841024,-257.17004984,0.00016699,2]
[399702858,1766629841038,-150.0,0.00016699,2]
[399702859,1766629841053,-150.21621351,0.00016699,2]
[399702860,1766629841067,-150.0,0.00016699,2]
[399702861,1766629841081,-150.0,0.00016699,2]
[399702862,1766629841092,-500.0,0.00016699,2]
[399702863,1766629841103,-150.0,0.00016699,2]
[399702864,1766629841116,-150.0,0.00016699,2]
[399702866,1766629841129,-500.0,0.00016699,2]
[399702868,1766629841142,-500.0,0.00016699,2]
[399702870,1766629841155,-500.0,0.00016699,2]
[399702872,1766629841168,-500.0,0.00016699,2]
[399702874,1766629841181,-150.0,0.00016699,2]
[399702877,1766629841194,-500.0,0.00016699,2]
[399702879,1766629841207,-150.0,0.00016699,2]
[399702881,1766629841221,-589.0,0.00016699,2]
[399702883,1766629841232,-150.0,0.00016699,2]
[399702885,1766629841245,-500.0,0.00016699,2]
[399702886,1766629841257,-500.0,0.00016699,2]
[399702887,1766629841268,-500.0,0.00016699,2]
[399702888,1766629841278,-476.0,0.00016699,2]
[399702889,1766629841297,-500.0,0.00016699,2]
[399702890,1766629841311,-155.31344132,0.00016726,2]
[399702891,1766629841324,-511.09628564,0.00016726,2]
[399702892,1766629841338,-150.0,0.00016726,2]
[399702893,1766629841351,-150.0,0.00016726,2]
[399702894,1766629841364,-500.0,0.00016726,2]
[399702895,1766629841377,-287.67023525,0.00016726,2]
[399702896,1766629841391,-500.0,0.00016726,2]
[399702897,1766629841404,-506.1580522,0.00016726,2]
[399702898,1766629841418,-500.0,0.00016726,2]
[399702899,1766629841430,-152.50602385,0.00016726,2]
[399702900,1766629841443,-150.0,0.00016726,2]
[399702901,1766629841459,-150.0,0.00016726,2]
[399702902,1766629841471,-150.0,0.00016726,2]
[399702903,1766629841484,-165.69929312,0.00016726,2]
[399702904,1766629841497,-150.0,0.00016726,2]
[399702905,1766629841511,-150.0,0.00016726,2]
[399702906,1766629841524,-265.24628001,0.00016726,2]
[399702907,1766629841535,-500.0,0.00016726,2]
[399702908,1766629841548,-159.13585729,0.00016726,2]
[399702909,1766629841561,-500.0,0.00016726,2]
[399702910,1766629841574,-500.0,0.00016726,2]
[399702911,1766629841591,-500.0,0.00016726,2]
[399702912,1766629841605,-500.0,0.00016726,2]
[399702913,1766629841619,-500.0,0.00016726,2]
[399702914,1766629841639,-589.0,0.00016726,2]
[399702915,1766629841653,-150.0,0.00016726,2]
[399702916,1766629841666,-500.0,0.00016726,2]
[399702917,1766629841677,-624.82250522,0.00016726,2]
[399702918,1766629841688,-500.0,0.00016726,2]
[399702919,1766629841700,-476.0,0.00016726,2]
[399702920,1766629841710,-500.0,0.00016726,2]
[399702921,1766629841724,-150.0,0.00016754,2]
[399702922,1766629841738,-203.93761826,0.00016754,2]
[399702923,1766629841751,-609.49162457,0.00016754,2]
[399702924,1766629841762,-322.46012406,0.00016754,2]
[399702925,1766629841773,-500.0,0.00016754,2]
[399702926,1766629841784,-232.31596184,0.00016754,2]
[399702927,1766629841795,-150.0,0.00016754,2]
[399702928,1766629841806,-150.0,0.00016754,2]
[399702929,1766629841819,-150.0,0.00016754,2]
[399702930,1766629841832,-150.0,0.00016754,2]
[399702931,1766629841853,-590.38858036,0.00016754,2]
[399702932,1766629841865,-356.37887807,0.00016754,2]
[399702933,1766629841876,-500.0,0.00016754,2]
[399702934,1766629841888,-500.0,0.00016754,2]
[399702935,1766629841900,-500.0,0.00016754,2]
[399702936,1766629841911,-500.0,0.00016754,2]
[399702937,1766629841925,-589.0,0.00016754,2]
[399702938,1766629841938,-150.0,0.00016754,2]
[399702939,1766629841950,-500.0,0.00016754,2]
[399702940,1766629841962,-500.0,0.00016754,2]
[399702941,1766629841980,-476.0,0.00016754,2]
[399702942,1766629841995,-500.0,0.00016754,2]
[399702943,1766629842008,-170.7,0.00016763,2]
[399702944,1766629842022,-202.39960696,0.00016781,2]
[399702945,1766629842035,-500.0,0.00016781,2]
[399702946,1766629842048,-215.5420525,0.00016781,2]
[399702947,1766629842062,-150.0,0.00016781,2]
[399702948,1766629842076,-150.0,0.00016781,2]
[399702949,1766629842089,-168.99374652,0.00016781,2]
[399702950,1766629842102,-500.0,0.00016781,2]
[399702951,1766629842116,-153.01320386,0.00016781,2]
[399702952,1766629842144,-500.0,0.00016781,2]
[399702953,1766629842156,-500.0,0.00016781,2]
[399702954,1766629842170,-589.0,0.00016781,2]
[399702955,1766629842184,-150.0,0.00016781,2]
[399702956,1766629842197,-500.0,0.00016781,2]
[399702957,1766629842210,-500.0,0.00016781,2]
[399702958,1766629842223,-476.0,0.00016781,2]
[399702959,1766629842237,-500.0,0.00016781,2]
[399702960,1766629842251,-736.0,0.00016804,2]
[399702961,1766629842265,-500.0,0.00016809,2]
[399702962,1766629842277,-155.65773765,0.00016809,2]
[399702963,1766629842291,-150.0,0.00016809,2]
[399702964,1766629842303,-500.0,0.00016809,2]
[399702965,1766629842316,-500.0,0.00016809,2]
[399702966,1766629842333,-500.0,0.00016809,2]
[399702967,1766629842347,-589.0,0.00016809,2]
[399702968,1766629842360,-186.37939701,0.00016809,2]
[399702969,1766629842373,-500.0,0.00016809,2]
[399702970,1766629842387,-500.0,0.00016809,2]
[399702971,1766629842400,-476.0,0.00016809,2]
[399702972,1766629842414,-500.0,0.00016809,2]
[399702973,1766629842427,-500.0,0.00016836,2]
[399702974,1766629842440,-249.18169902,0.00016836,2]
[399702975,1766629842453,-500.0,0.00016836,2]
[399702976,1766629842466,-500.0,0.00016836,2]
[399702977,1766629842479,-500.0,0.00016836,2]
[399702978,1766629842491,-589.0,0.00016836,2]
[399702979,1766629842508,-500.0,0.00016836,2]
[399702980,1766629842521,-500.0,0.00016836,2]
[399702981,1766629842533,-476.0,0.00016836,2]
[399702982,1766629842547,-500.0,0.00016836,2]
[399702983,1766629842560,-171.41662455,0.00016863,2]
[399702984,1766629842573,-500.0,0.00016863,2]
[399702985,1766629842585,-500.0,0.00016863,2]
[399702986,1766629842598,-500.0,0.00016863,2]
[399702987,1766629842610,-589.0,0.00016863,2]
[399702988,1766629842622,-500.0,0.00016863,2]
[399702989,1766629842635,-500.0,0.00016863,2]
[399702990,1766629842649,-476.0,0.00016863,2]
[399702991,1766629842661,-500.0,0.00016863,2]
[399702992,1766629842674,-500.0,0.00016891,2]
[399702993,1766629842689,-500.0,0.00016891,2]
[399702994,1766629842701,-515.68111774,0.00016891,2]
[399702995,1766629842714,-589.0,0.00016891,2]
[399702996,1766629842727,-500.0,0.00016891,2]
[399702997,1766629842738,-500.0,0.00016891,2]
[399702998,1766629842750,-476.0,0.00016891,2]
[399702999,1766629842763,-500.0,0.00016891,2]
[399703000,1766629842777,-653.53083635,0.000169,2]
[399703001,1766629842789,-9336.19076629,0.000169,2]
[399703002,1766629842802,-225.55045997,0.000169,2]
[399703003,1766629842814,-880.45953678,0.000169,2]
[399703004,1766629842826,-316.41031083,0.000169,2]
[399703005,1766629842838,-500.0,0.00016918,2]
[399703006,1766629842853,-500.0,0.00016918,2]
[399703007,1766629842865,-589.0,0.00016918,2]
[399703008,1766629842877,-500.0,0.00016918,2]
[399703009,1766629842890,-500.0,0.00016918,2]
[399703010,1766629842903,-476.0,0.00016918,2]
[399703011,1766629842916,-201.91568302,0.00016918,2]
[399703012,1766629842929,-150.99,0.00016922,2]
[399703013,1766629842942,-8292.99,0.00016922,2]
[399703014,1766629842954,-9999.99,0.00016922,2]
[399703015,1766629842966,-999.99,0.00016922,2]
[399703016,1766629842978,-150.99,0.00016922,2]
[399703017,1766629842990,-2000.0,0.00016936,2]
[399703018,1766629843002,-2000.0,0.00016936,2]
[399703019,1766629843015,-2000.0,0.00016936,2]
[399703020,1766629843027,-2000.0,0.00016936,2]
[399703021,1766629843039,-2000.0,0.00016936,2]
[399703022,1766629843052,-500.0,0.00016946,2]
[399703024,1766629843079,-420.49001306,0.00016946,2]
[399703025,1766629843095,-589.0,0.00016946,2]
[399703026,1766629843109,-602.24742729,0.00016946,2]
[399703027,1766629843123,-511.04343798,0.00016946,2]
[399703028,1766629843136,-476.0,0.00016946,2]
[399703029,1766629843151,-502.81609177,0.00016973,2]
[399703030,1766629843165,-340.58517004,0.00016973,2]
[399703032,1766629843179,-500.0,0.00016973,2]
[399703034,1766629843193,-500.0,0.00016973,2]
[399703035,1766629843206,-500.0,0.00016973,2]
[399703036,1766629843218,-501.97014703,0.00016973,2]
[399703037,1766629843231,-500.0,0.00016973,2]
[399703038,1766629843244,-500.0,0.00016973,2]
[399703039,1766629843258,-500.0,0.00016973,2]
[399703040,1766629843271,-502.2966499,0.00016973,2]
[399703041,1766629843284,-500.0,0.00016973,2]
[399703042,1766629843298,-589.0,0.00016973,2]
[399703043,1766629843310,-476.0,0.00016973,2]
[399703044,1766629843323,-156.41730905,0.00016973,2]
[399703045,1766629843335,-500.0,0.00016998,2]
[399703046,1766629843347,-300.0,0.00016999,2]
[399703047,1766629843360,-250.0,0.00017,2]
[399703048,1766629843372,-2495077.15857838,0.00017,2]
[399703053,1766629843972,-563.94852852,0.00017,2]
[399703056,1766629844364,-703.25429547,0.00017,2]
[399703057,1766629844411,-1297988.23107304,0.00017,2]
[399703058,1766629845477,-191.62140676,0.000169,2]
[399703059,1766629845488,-1501.34052749,0.00017,2]
[399703060,1766629846308,-1500.99561854,0.00017,2]
[399703109,1766629971983,-500.0,0.00012924,2]
[399703110,1766629972006,-388.841761,0.00012932,2]
[399703111,1766629986896,-292.388139,0.00012932,2]
[399703112,1766629986919,-4.62748874,0.00012995,2]
[399703113,1766629989251,-178.01205043,0.00012995,2]
[399703114,1766630011914,500.0,0.00012917,2]
[399703116,1766630288340,258.13,0.000129,2]
[399703117,1766630291649,-253.25722882,0.00013002,2]
[399703118,1766630389610,205.02017884,0.00013144,7]
[399703119,1766630406950,-253.0,0.0001253,2]
[399703120,1766630406973,-20.13277118,0.0001253,2]
[399703121,1766630494468,-129.86722882,0.0001253,2]
[399703122,1766630507953,9658.98,0.00012363,2]
[399703123,1766630607605,81.29554236,9.691e-05,2]
[399703124,1766630607629,80.86445764,9.691e-05,2]
[399703125,1766630607841,162.16,0.0001066,2]
[399703126,1766630608104,162.16,0.0001163,2]
[399703127,1766630661940,-162.16,0.00012599,2]
[399703128,1766630661962,-32.84,0.00012754,2]
[399703129,1766630664616,-195.08800762,0.00012754,2]
[399703130,1766630692043,1216.27,0.00012106,2]
[399703131,1766630794205,-72.07199238,0.00012754,2]
[399703132,1766630804947,500.0,0.00012107,3]
[399703133,1766630886968,-300.0,0.00012855,2]
[399703134,1766630886991,-198.18392849,0.00012879,2]
[399703135,1766630889245,-51.81607151,0.00012879,2]
[399703136,1766630889269,-179.07499014,0.00012879,2]
[399703137,1766630894140,500.0,0.00012732,2]
[399703138,1766630894184,500.0,0.00012732,2]
[399703139,1766630894872,476.0,0.00012732,2]
[399703140,1766630895635,-219.09285113,0.00012759,2]
[399703141,1766630897689,-183.42794163,0.00012759,2]
[399703142,1766630899843,-222.30171246,0.00012759,2]
[399703143,1766630899865,-77.69828754,0.00012759,2]
[399703144,1766630901329,-359.52578519,0.00012759,2]
[399703145,1766630904488,-62.77592727,0.00012759,2]
[399703146,1766630904510,-222.05554244,0.00012759,2]
[399703147,1766630908097,-195.0,0.00012759,2]
[399703148,1766630908788,384.35,6.027e-05,2]
[399703149,1766630909010,384.35,6.344e-05,2]
[399703150,1766630909215,384.35,6.662e-05,2]
[399703151,1766630909423,384.35,6.979e-05,2]
[399703152,1766630909630,384.35,7.296e-05,2]
[399703153,1766630909834,384.35,7.613e-05,2]
[399703154,1766630910066,384.35,7.931e-05,2]
[399703155,1766630910282,384.35,8.248e-05,2]
[399703156,1766630910483,384.35,8.565e-05,2]
[399703157,1766630910677,384.35,8.882e-05,2]
[399703158,1766630910864,384.35,9.2e-05,2]
[399703159,1766630911095,384.35,9.517e-05,2]
[399703160,1766630911248,384.35,9.834e-05,2]
[399703161,1766630911377,-58.94445756,0.00012759,2]
[399703162,1766630911399,-123.48329353,0.00012787,2]
[399703163,1766630911457,384.35,0.00010151,2]
[399703164,1766630911685,384.35,0.00010468,2]
[399703165,1766630911884,384.35,0.00010786,2]
[399703166,1766630912077,384.35,0.00011103,2]
[399703167,1766630912305,384.35,0.0001142,2]
[399703168,1766630912518,384.35,0.00011737,2]
[399703169,1766630912709,384.35,0.00012055,2]
[399703170,1766630912753,-250.0,0.00012787,2]
[399703171,1766630915784,-126.51670647,0.00012787,2]
[399703172,1766630915807,-78.74900466,0.00012787,2]
[399703173,1766630918936,-259.25722882,0.00012787,2]
[399703174,1766630922212,-137.99376652,0.00012787,2]
[399703175,1766630922237,-40.66738813,0.00012814,2]
[399703176,1766630925192,-311.50165396,0.00012814,2]
[399703177,1766630926662,-147.83095791,0.00012814,2]
[399703178,1766630926684,-47.16904209,0.00012814,2]
[399703179,1766630929877,-252.05235254,0.00012814,2]
[399703181,1766630968405,500.0,0.00012662,2]
[399703182,1766630968451,192.86601524,0.00012662,2]
[399703183,1766630968474,307.13398476,0.00012662,2]
[399703184,1766630968521,500.0,0.00012662,2]
[399703185,1766630968590,500.0,0.00012689,2]
[399703186,1766630968629,500.0,0.00012689,2]
[399703187,1766630968680,500.0,0.00012689,2]
[399703188,1766630968759,500.0,0.00012717,2]
[399703189,1766630968829,356.37887807,0.00012717,2]